Cogmind - Beta 11.1 @@@ ROGUE MODE // 2022.07.02 @ 12:04:27 Player: tkc Result: Destroyed by G-47 Trooper with Particle Gun Performance ------------- Evolutions (1) 500 Regions Visited (4) 800 Robots Destroyed (36) 180 Value Destroyed (831) 831 Prototype IDs (2) 40 Alien Tech Used (0) 0 Bonus (702) 702 TOTAL SCORE: 3053 Bonus ------- High Alert Combat Kills 36 Follower Combat Kills 687 Friendly Fire -21 Cogmind --------- Core Integrity 0/400 Matter 300/300 Energy 280/280 System Corruption 1% Temperature Cool (86) Movement Walking (260) Ox2 Location -9/Storage Parts ------- > --- POWER (1) -------- Heavy Ion Engine > --- PROPULSION (3) --- Aluminum Leg > --- UTILITY (3) ------ Medium Storage Unit Seismic Detector Light Armor Plating > --- WEAPON (2) ------- Improved EM Shotgun Improved EM Shotgun > --- INVENTORY (10) --- Light Ion Engine Improved Ion Engine Heavy Ion Engine High-capacity Storage Unit Medium Armor Plating Improved Heavy Laser Improved Assault Rifle Improved Assault Rifle EMP Blaster Rocket Launcher Peak State ------------ > --- POWER ------------ Heavy Ion Engine > --- PROPULSION ------- Aluminum Leg Aluminum Leg Wheel > --- UTILITY ---------- Small Storage Unit Medium Storage Unit Seismic Detector > --- WEAPON ----------- Improved EM Shotgun Improved EM Shotgun > --- INVENTORY -------- Light Ion Engine Heavy Ion Engine Medium Armor Plating Improved EM Shotgun Small Laser Improved Assault Rifle Improved Assault Rifle EMP Blaster EMP Blaster Rocket Launcher [Rating: 17] Favorites ----------- Power Light Ion Engine Engine Light Ion Engine Propulsion Aluminum Leg Leg Aluminum Leg Wheel Wheel Utility Small Storage Unit Device Seismic Detector Storage Small Storage Unit Protection Light Armor Plating Weapon Improved EM Shotgun Energy Gun Improved EM Shotgun Ballistic Gun Assault Rifle Launcher EMP Blaster Build | -11 -10 -10 -9 -9 ------- Run | Scr Mat Min Mat Sto Slots Evolved 2 | . . . 2 . Power . | . . . . . Propulsion 1 | . . . 1 . Utility 1 | . . . 1 . Weapon . | . . . . . Parts Attached 42 | 6 1 6 4 25 Power 6 | 2 . 1 . 3 Engine 6 | 2 . 1 . 3 Core . | . . . . . Reactor . | . . . . . Propulsion 13 | 1 1 1 2 8 Treads . | . . . . . Leg 10 | 1 1 1 1 6 Wheel 3 | . . . 1 2 Hover . | . . . . . Flight . | . . . . . Utility 11 | 1 . 3 2 5 Device 2 | . . . 1 1 Storage 5 | 1 . 1 . 3 Processor . | . . . . . Hackware . | . . . . . Protection 4 | . . 2 1 1 Artifact . | . . . . . Weapon 12 | 2 . 1 . 9 Energy Gun 5 | . . . . 5 Energy Cannon . | . . . . . Ballistic Gun 4 | 2 . 1 . 1 Ballistic Cannon . | . . . . . Launcher 3 | . . . . 3 Special Weapon . | . . . . . Impact Weapon . | . . . . . Slashing Weapon . | . . . . . Piercing Weapon . | . . . . . Special Melee Weapon . | . . . . . Unidentified Prototypes 2 | . . . . 2 Parts Lost 15 | . . 1 1 13 Power 3 | . . 1 . 2 Propulsion 5 | . . . 1 4 Utility 2 | . . . . 2 Weapon 5 | . . . . 5 Highest Loss Streak 11 | . . 1 1 11 To Critical Strikes . | . . . . . Average Slot Usage (%) 89 | . 85 86 95 89 Engine 11 | . 14 14 11 10 Leg 22 | . 28 28 29 17 Wheel 5 | . . . 2 10 Device 5 | . . . 8 8 Storage 14 | . 14 14 11 15 Protection 4 | . . 1 11 5 Energy Gun 9 | . . . . 18 Ballistic Gun 13 | . 28 28 22 2 Naked Turns . | . . . . . Heaviest Build 30 | 13 11 14 19 30 Greatest Support 30 | 10 20 20 30 20 Greatest Overweight (x) 9 | 1 . . . 9 Average Overweight (x) . | . . . . 1 Largest Inventory Capacity 20 | 8 8 8 8 20 Average Capacity 8 | 7 8 8 8 9 Most Carried 10 | 6 6 8 8 10 Average Carried 8 | 3 5 7 7 9 Final Capacity 10 | 8 8 8 8 10 Final Carried 10 | 6 5 8 8 10 Class Distribution -------------------- 81% | Mutant 18% | Scavenger-Mutant Dominant Class ---------------- Mutant | -10/Materials Mutant | -10/Mines Mutant | -9/Materials Mutant | -9/Storage Resources | -11 -10 -10 -9 -9 ----------- Run | Scr Mat Min Mat Sto Matter Collected 798 | 195 18 208 79 298 Remotely . | . . . . . Salvage Created 1152 | 57 18 257 108 712 Parts 78 | 4 2 16 3 53 Haulers Intercepted 3 | . . . . 3 Recyclers Shooed 1 | . . 1 . . Parts Field Recycled . | . . . . . Retrieved Matter . | . . . . . Parts Self-Destructed . | . . . . . Prevented . | . . . . . Kills | -11 -10 -10 -9 -9 ------- Run | Scr Mat Min Mat Sto Combat Hostiles Destroyed 20 | . . 4 2 14 Guns 12 | . . 4 2 6 AOE 8 | . . . . 8 Classes Destroyed 9 | 1 1 3 . 4 Worker 5 | . . 3 . 2 Builder 4 | . . . . 4 Hauler 3 | . . . . 3 Recycler 1 | 1 . . . . Mechanic 1 | . . . . 1 Operator 2 | . 1 . . 1 Swarmer 3 | . . . . 3 Grunt 9 | . . 2 . 7 Sentry 8 | . . 2 2 4 Best Kill Streak 18 | 1 1 2 1 18 Combat Bots Only 8 | . . 2 1 8 Max Kills in Single Turn 5 | 1 1 1 1 5 Gunslinging . | . . . . . Exploded 3 | . . . . 3 Melee . | . . . . . Uniques/NPCs Destroyed . | . . . . . Combat | -11 -10 -10 -9 -9 -------- Run | Scr Mat Min Mat Sto Damage Taken 1828 | . . 392 246 1190 Core 488 | . . 86 30 372 Absorbed by Shields . | . . . . . Core Remaining (%) 82 | 100 . 65 . . Volleys Fired 79 | 3 3 24 11 38 Largest 2 | 2 2 2 2 2 Hottest 90 | 40 40 40 40 90 Shots Fired 146 | 6 6 48 22 64 Gun 140 | 6 6 48 22 58 Cannon . | . . . . . Launcher 6 | . . . . 6 Special . | . . . . . Kinetic 106 | 6 6 48 22 24 Thermal 7 | . . . . 7 Explosive 3 | . . . . 3 Electromagnetic 30 | . . . . 30 Robot Hit Streak 15 | 1 3 12 13 15 Robot Miss Streak 4 | 1 2 2 2 4 Penetration Max . | . . . . . Secondary Targets 5 | . . 2 . 3 Max Gunslinging Chain 1 | . . 1 . 1 Shots Hit Robots 100 | 3 3 35 15 44 Core Hits 69 | 3 1 15 5 45 Critical Kills 1 | . . 1 . . Critical Parts Destroyed 1 | . . 1 . . Critical Strikes 2 | . . 2 . . Destroy 2 | . . 2 . . Melee Attacks . | . . . . . Impact . | . . . . . Slashing . | . . . . . Piercing . | . . . . . Sneak Attacks . | . . . . . Combat Hostiles . | . . . . . Follow-up Attacks . | . . . . . Damage Inflicted 2212 | 45 36 374 162 1595 Guns 1172 | 45 36 374 162 555 Cannons . | . . . . . Explosions 1040 | . . . . 1040 Melee . | . . . . . Ramming . | . . . . . Kinetic 855 | 45 36 374 162 238 Thermal 270 | . . . . 270 Explosive 651 | . . . . 651 Electromagnetic 436 | . . . . 436 Impact . | . . . . . Slashing . | . . . . . Piercing . | . . . . . Highest Corruption 1 | . . . . 1 Average Corruption 1 | . . . . 1 Corruption Purged . | . . . . . Corruption Blocked . | . . . . . Effects 3 | . . . . 3 Message Errors 1 | . . . . 1 Parts Rejected 1 | . . . . 1 Misfires 1 | . . . . 1 Overload Shots . | . . . . . Overflow Damage 22 | . . . . 22 Projectiles . | . . . . . Explosions 22 | . . . . 22 Melee . | . . . . . Knockbacks . | . . . . . Impact . | . . . . . Kinetic . | . . . . . Secondary . | . . . . . Self-Inflicted Damage 184 | . . . . 184 Shots 5 | . . . . 5 Rammed . | . . . . . Targets Rammed . | . . . . . Kicked . | . . . . . Crushed . | . . . . . Highest Temperature 96 | . . 45 27 96 Average Temperature 26 | . . 16 16 30 Received Heat Transfer 741 | . . 168 126 447 Siege Activations . | . . . . . Robots Corrupted . | . . . . . Combat Hostiles . | . . . . . Parts Fried . | . . . . . Impact Corruptions . | . . . . . Robots Melted . | . . . . . Combat Hostiles . | . . . . . Parts Melted . | . . . . . Heat Transferred 475 | . . . . 475 Parts Sabotaged . | . . . . . Parts Stolen . | . . . . . Parts Stripped . | . . . . . Power Chain Reactions 6 | . . . . 6 Missiles Intercepted . | . . . . . Alert | -11 -10 -10 -9 -9 ------- Run | Scr Mat Min Mat Sto Peak Influence 996 | 5 8 103 117 996 Initial 49 | . 3 3 7 49 Average 300 | 2 4 47 47 582 Maximum Alert Level 3 | . . . . 3 Low Security (%) 58 | 100 100 100 100 14 Level 1 3 | . . . . 6 Level 2 20 | . . . . 42 Level 3 17 | . . . . 36 Level 4 . | . . . . . Level 5 . | . . . . . High Security . | . . . . . Max Security . | . . . . . Squads Dispatched 10 | . 1 . . 9 Investigation 4 | . . . . 4 Extermination . | . . . . . Reinforcement 5 | . 1 . . 4 Assault 1 | . . . . 1 Garrison . | . . . . . Intercept . | . . . . . Searches Triggered . | . . . . . Construction Impeded 1 | . . . . 1 Haulers Reinforced . | . . . . . Active Scanning Responses . | . . . . . Cargo Convoy Interrupts . | . . . . . Stealth | -11 -10 -10 -9 -9 --------- Run | Scr Mat Min Mat Sto Distress Signals 5 | . . . 1 4 Communications Jammed . | . . . . . Distress Signals . | . . . . . Times Spotted 61 | . 3 4 5 49 Peak Tracking Total 7 | . 3 2 2 7 Tactical Retreats . | . . . . . Traps | -11 -10 -10 -9 -9 ------- Run | Scr Mat Min Mat Sto Traps Triggered 3 | . . . . 3 Indirectly . | . . . . . Trap Hack Attempts . | . . . . . Triggered . | . . . . . Disarmed . | . . . . . Reprogrammed . | . . . . . Reused . | . . . . . Traps Extracted . | . . . . . Installed . | . . . . . Triggered . | . . . . . Machines | -11 -10 -10 -9 -9 ---------- Run | Scr Mat Min Mat Sto Machines Disabled 4 | . . . . 4 Max in Single Turn 1 | . . . . 1 Machines Sabotaged . | . . . . . Garrisons Compromised . | . . . . . Overloaded Fab Kills . | . . . . . Hacking | -11 -10 -10 -9 -9 --------- Run | Scr Mat Min Mat Sto Machines Accessed 6 | . 1 . . 5 Terminals 4 | . . . . 4 Fabricators . | . . . . . Repair Stations 1 | . . . . 1 Recycling Units 1 | . 1 . . . Scanalyzers . | . . . . . Garrison Access . | . . . . . Total Hacks 14 | . 4 . . 10 Successful 5 | . 4 . . 1 Failed 9 | . . . . 9 Catastrophic 3 | . . . . 3 Database Lockouts . | . . . . . Manual 1 | . . . . 1 Terminals 9 | . . . . 9 Fabricators . | . . . . . Repair Stations 1 | . . . . 1 Recycling Units 4 | . 4 . . . Scanalyzers . | . . . . . Garrison Access . | . . . . . Terminal Hacks 1 | . . . . 1 Open Door 1 | . . . . 1 Fabricator Hacks . | . . . . . Repair Station Hacks . | . . . . . Recycling Unit Hacks 4 | . 4 . . . Recycle Component 1 | . 1 . . . Process 1 | . 1 . . . Report Inventory 1 | . 1 . . . Retrieve Matter 1 | . 1 . . . Scanalyzer . | . . . . . Garrison Access Hacks . | . . . . . Unauthorized Hacks . | . . . . . Terminals . | . . . . . Fabricators . | . . . . . Repair Stations . | . . . . . Recycling Units . | . . . . . Scanalyzers . | . . . . . Garrison Access . | . . . . . Data Cores Recovered . | . . . . . Used . | . . . . . Hacking Detections 6 | . 1 . . 5 Full Trace Events 3 | . . . . 3 Feedback Events . | . . . . . Feedback Blocked . | . . . . . Robot Schematics Acquired . | . . . . . Robots Built . | . . . . . Authchips . | . . . . . Time . | . . . . . Total Robot Build Rating . | . . . . . Part Schematics Acquired . | . . . . . Parts Built . | . . . . . Authchips . | . . . . . Time . | . . . . . Total Part Build Rating . | . . . . . Parts Repaired . | . . . . . Time . | . . . . . Parts Recycled 1 | . 1 . . . Recycled Matter 24 | . 24 . . . Retrieved Matter 24 | . 24 . . . Retrieved Components . | . . . . . Parts Scanalyzed . | . . . . . Part Schematics Acquired . | . . . . . Parts Damaged . | . . . . . Bothacking | -11 -10 -10 -9 -9 ------------ Run | Scr Mat Min Mat Sto Used RIF Installer . | . . . . . Robots Hacked . | . . . . . Non-combat . | . . . . . Combat . | . . . . . Robot Hacks Applied . | . . . . . Relay Couplers Released . | . . . . . Fabnet Peak Effective % . | . . . . . Robots Rewired . | . . . . . Allies Hacked . | . . . . . Hacks Repelled . | . . . . . Allies | -11 -10 -10 -9 -9 -------- Run | Scr Mat Min Mat Sto Total Allies 1 | . . . . 1 Largest Group 1 | . . . . 1 Highest-Rated Group 100 | . . . . 100 Highest-Rated Ally 100 | . . . . 100 Total Orders . | . . . . . Ally Attacks 51 | . . . . 51 Total Damage 1856 | . . . . 1856 Kills 29 | . . . . 29 Allies Corrupted . | . . . . . Allies Melted . | . . . . . Intel | -11 -10 -10 -9 -9 ------- Run | Scr Mat Min Mat Sto Robot Analysis Total . | . . . . . Derelict Logs Recovered 1 | . . 1 . . Drone Launches . | . . . . . Drone Recoveries . | . . . . . Exploration | -11 -10 -10 -9 -9 ------------- Run | Scr Mat Min Mat Sto Turns Passed 1790 | 95 119 481 233 862 Spaces Moved 1068 | 46 91 328 151 452 Core 4 | 2 . . . 2 Treads . | . . . . . Legs 814 | 44 91 328 151 200 Wheels 250 | . . . . 250 Hover . | . . . . . Flight . | . . . . . Fastest Speed 50 | 50 120 120 120 80 Average Speed 135 | 155 120 120 120 153 Slowest Speed 500 | 190 120 120 120 500 Overloaded Moves . | . . . . . Propulsion Burnouts . | . . . . . Robots Hopped . | . . . . . Cave-ins Triggered . | . . . . . Exploration Rate (%) 39 | 3 26 70 18 81 Regions Visited 4 Branch Regions 2 Pre-discovered Areas . | . . . . . Known Exits Taken . | . . . . . Unknown Exits Taken 4 | 1 1 1 1 . Scrap Searched . | . . . . . Spaces Dug . | . . . . . Terrain Destroyed 38 | . . . . 38 Melee . | . . . . . Projectile . | . . . . . AOE 38 | . . . . 38 Terrain Rammed . | . . . . . Walls Destroyed . | . . . . . Machines Disabled . | . . . . . Actions | -11 -10 -10 -9 -9 --------- Run | Scr Mat Min Mat Sto Total 1267 | 63 95 374 182 553 Wait 34 | . . 1 14 19 Move 1064 | 45 90 327 150 452 Hop . | . . . . . Pick Up 31 | 8 1 8 2 12 Fast Attach 18 | 4 . 3 2 9 Attach 12 | 1 1 1 2 7 Detach . | . . . . . Swap 12 | 1 . 2 . 9 Drop 17 | 1 . 8 1 7 Fire 79 | 3 3 24 11 38 Melee . | . . . . . Ram . | . . . . . Kick . | . . . . . Crush . | . . . . . Escape Stasis . | . . . . . Rewire . | . . . . . Trap . | . . . . . Miscellaneous . | . . . . . Route ------- -11/Scrapyard -10/Materials -10/Mines -9/Materials (discovered 3 exits: Min x2 / *Sto) -9/Storage History --------- Turn | Location | Event 14 | -11/Scrapyard | Discovered new exit (range 15) 96 | -11/Scrapyard | Entered Materials 202 | -10/Materials | Discovered new exit (range 9) 215 | -10/Materials | Entered Mines 246 | -10/Mines | Met a Derelict bent on vengeance 307 | -10/Mines | Build established: Mutant 317 | -10/Mines | Found a hidden stash of uninstalled traps 352 | -10/Mines | Received a Rocket Launcher from a helpful Derelict 674 | -10/Mines | Discovered new exit (range 8) 696 | -10/Mines | Entered Materials 696 | -9/Materials | Evolved 2 slots: Propulsion x1, Utility x1 697 | -9/Materials | Identified exit to Mines 779 | -9/Materials | Discovered new exit (range 9) 929 | -9/Materials | Entered Storage 1041 | -9/Storage | Core integrity fell below 50% 1076 | -9/Storage | Destroyed 8 combat bots 1084 | -9/Storage | Lost 11 parts (2p3n2u4w) 1119 | -9/Storage | Core integrity fell below 20% 1173 | -9/Storage | Met 01-MTF 1729 | -9/Storage | First assault squad dispatched 1746 | -9/Storage | Build established: Scavenger-Mutant 1791 | -9/Storage | Destroyed by G-47 Trooper with Particle Gun Last Messages --------------- 01771_ G-47 Trooper unfolds itself. 01771_ L-31 Rogue unfolds itself. 01771_ G-34 Mercenary unfolds itself. 01771_ I-25 Savior unfolds itself. 01771_ G-34 Mercenary destroyed. 01771_ K-01 Serf destroyed. 01773_ Chain reaction triggered in Ion Engine. 01773_ G-34 Mercenary destroyed. 01773_ Terminal disabled. 01774_ System corrupted: Aluminum Leg rejected. 01775_ K-01 Serf collects debris. 01776_ Wheel destroyed. 01780_ 01-MTF Prototype Protection severed. 01781_ K-01 Serf collects debris. 01784_ L-31 Rogue destroyed. 01784_ K-01 Serf collects debris. 01786_ L-31 Rogue destroyed. 01787_ G-34 Mercenary destroyed. 01787_ Switching to secondary target: G-34 Mercenary. 01787_ K-01 Serf collects debris. Map ----- +----------------------------------------------------+ | ??????????????# =% ! | | ??????????????# *####+############ !=## | | ??????????????## ##? ?????????#=%=%## | | ???????????????# ## """" ???????# %[="# | | ???????????????# ## """" #??????# =%= | | ???????????????# ## """" =#????" +=%[" | | ???????????????# ## """" #????" # # | | ???????????????# ## #????#?# [ | | ???????????????# # ?? #??????# = | | ???????????????# ## ??????#??????#!=% | | ???????????????#^^ ## ??????????????#=%= | | ???????????????# #????????????????#/*= | | ???????????????# #????????#########%= # | | ???????????????# #????????# #=%*## | | ???????????????# a###??????# # ! ### | | ???????????????# #T###????# + #?# | | ???????????????# a+ ] #????# # ##T | | ???????????????#! #####????# # # | | ???????????????#%[ #????????# + + | | ???????????????#* #????????# # # | | ???????????????# #????????# # ### | | ???????????????# #????????# # #?? | | ???????????????# #??###???# # #?? | | ???????????????# ##"" #???# # #?? | | ???????????????# ##"=%######+##########?? | | ???????????????# @;=%g%%* %%!#?????????? | | ?????????????### ;k=p!=g%i #?????????? | | ?????????????#T# = """"" ##????????? | | ?????????????" + ; """"" #????????? | | ?????????????### # """"" [%##????????? | | ???????????????# ###########+##?????????? | | ???????????????# #??????????? | | ?????????????####+######### #????####### | | ?????????????# *##??# #????#[ !# | | ?????????????# """ #??# #????# " | | ?????????????# """ ##??# #????#[ | | ?????????????# """ #???# #????# " | | ?????????????# #???# #????# ]] #T | | ?????????????# """ #???# #????#] ] ## | | ?????????????# """ #???# #????######? | | ???########### """ #???# #??????????? | | ???# # #?######+#####??????? | | ???#"" !| ##########?# ! #??????? | | ???#"Y % #??????????## " ]! #?????## | | ???#"" | #??????????## ! #?????#" | | ???# #??????????## [% #?????#" | | ???# #??????????# #=%"############" | | ???# #??????????# %"=" ### | | ???# ########???# %# ## #?? | | ????######+#### ##### ##%## """ #?? | +----------------------------------------------------+ Best States ------------- Heat Dissipation 28 Energy Generation 14 Energy Capacity 280 Matter Stores 300 Matter Capacity 300 Sight Range 16 Terrain Scan Density 10 Armor Coverage 225 Propulsion Shielding 33 Evasion (%) 55 Item Schematics ----------------- None Robot Schematics ------------------ None Fabricated ------------ Nothing Alien Tech Used ----------------- None Achievements -------------- None Challenges ------------ None Game ------ Seed SegregatorEtherialActivator Manual? 0 Play Time 00:27:52 Cumulative 10.8 hours Start 2022.07.02 @ 11:36:34 End 2022.07.02 @ 12:04:27 Sessions 1 Manual Loads 0 Difficulty Rogue Special Mode None Game No. 12 Rogue 11 Adventurer 0 Explorer 1 Win Type - Total 0 Types 0/0/0/0/0/0/0/0/0 Lore% 1 Gallery% 11 Achievement% 9 Wizard Run 0 Options --------- ASCII 0 Keyboard 0 Movement Mouse Keybinds 0 Fullscreen 1 Font 18/X11 Map View 76x50 Tactical HUD 1 Map Filters NONE Filters NONE Steam 1 RUN: 350487d8-64b7-43f5-b84a-ce4cdb5e1c80